Cogmind - Beta 17 @@@ ROGUE MODE // 2026.08.11 @ 17:12:38 Player: MAXX-P31 Result: Destroyed by S-43 Plague with Heavy Machine Gun Performance ------------- Evolutions (9) 4500 Regions Visited (22) 4400 Robots Destroyed (382) 1910 Value Destroyed (20136) 20136 Prototype IDs (29) 580 Alien Tech Used (0) 0 Bonus (11915) 11915 TOTAL SCORE: 43441 Bonus ------- High Alert Combat Kills 3326 Follower Combat Kills 2462 Entered Garrisons 1000 Used RIF Installer 2500 Built Enhanced Grunts 300 Met R17 at Cetus 500 Met R17 at Research 2000 Friendly Fire -173 Cogmind --------- Core Integrity 0/1600 Matter 300/300 Energy 100/100 System Corruption 16% Temperature Cool (0) Movement Core (50) Location -1/Access Parts ------- > --- POWER (3) -------- (None) > --- PROPULSION (6) --- (None) > --- UTILITY (10) ----- (None) > --- WEAPON (6) ------- (None) > --- INVENTORY (5) ---- Energy Well (350) Experimental Matter Compressor (500) Long-range Terrain Scanner Relay Coupler [Sentry] (26) Peak State ------------ > --- POWER ------------ Light Quantum Reactor Improved Quantum Reactor > --- PROPULSION ------- Improved Heavy Treads Improved Heavy Treads Armored Heavy Treads > --- UTILITY ---------- Improved Cooling System Experimental Cooling System Huge Storage Unit Advanced Sensor Array Advanced Signal Interpreter Experimental Terrain Scan Processor Experimental Targeting Computer Advanced Target Analyzer Improved Phase Shifter Relay Coupler [NC] > --- WEAPON ----------- Precision Phase Gun Precision Phase Gun Precision Phase Gun Heavy Dispersion Rifle Heavy Quantum Rifle > --- INVENTORY -------- Angular Momentum Engine Micro Antimatter Reactor Improved Heavy Treads Improved Cooling System Advanced Cooling System Advanced Cooling System Huge Storage Unit Energy Well Matter Compressor Experimental Matter Compressor Long-range Terrain Scanner Seismic Detector Improved Targeting Computer Advanced Shield Generator Advanced System Shield Relay Coupler [Swarmer] Relay Coupler [Grunt] Relay Coupler [Sentry] Compact Mass Driver Compact Mass Driver Enhanced Hardcell Cannon Advanced Remote Datajack Improved Plasma Cutter Chainsword [Rating: 178] Favorites ----------- Power Improved Deuterium Engine Engine Improved Deuterium Engine Power Core Light Nuclear Core Reactor Improved Quantum Reactor Propulsion Light Treads Treads Light Treads Leg Improved VSS Leg Utility Huge Storage Unit Device Improved Cooling System Storage Huge Storage Unit Processor Advanced Targeting Computer Hackware Relay Coupler [NC] Protection Layered Light Armor Plating Weapon Gatling Laser Energy Gun Gatling Laser Energy Cannon Heavy Plasma Cannon Ballistic Gun Autogun Ballistic Cannon Compact Mass Driver Launcher Rocket Launcher Special Weapon Improved Remote Datajack Impact Weapon Hammer Slashing Weapon Chainsword Special Melee Weapon Datajack Build | -11 -10 -9 -8 -8 -8 -7 -7 -7 -6 -6 -6 -6 -5 -5 -5 -5 -4 -4 -3 -3 -2 -1 ------- Run | Yrd Mat Mat Mat Gar Mat Fac Gar Fac Fac Ext Cet Arc Fac Gar Fac Gar Fac Gar Res Tes Res Acc Slots Evolved 18 | . . 2 2 . . 2 . . 2 . . . 2 . . . 2 . 2 . 2 2 Power 2 | . . . . . . . . . . . . . 1 . . . . . . . . 1 Propulsion 4 | . . . . . . 1 . . 1 . . . . . . . . . 1 . 1 . Utility 8 | . . 1 1 . . 1 . . 1 . . . 1 . . . 1 . 1 . 1 . Weapon 4 | . . 1 1 . . . . . . . . . . . . . 1 . . . . 1 Parts Attached 286 | 7 6 21 23 10 9 9 9 12 15 17 4 4 1 11 . 15 1 25 12 22 31 22 Power 38 | 1 . 4 . 1 1 1 2 1 2 4 2 . . . . 3 . 2 3 3 4 4 Engine 17 | 1 . 2 . 1 . . 1 1 2 4 1 . . . . 2 . . . . 1 1 Core 7 | . . 2 . . 1 1 1 . . . . . . . . 1 . 1 . . . . Reactor 14 | . . . . . . . . . . . 1 . . . . . . 1 3 3 3 3 Propulsion 52 | 2 2 5 5 2 1 1 2 2 3 5 1 . . 1 . 1 . 1 1 2 6 9 Treads 38 | 2 . 5 5 2 1 1 2 2 3 5 1 . . 1 . 1 . 1 1 2 2 1 Leg 14 | . 2 . . . . . . . . . . . . . . . . . . . 4 8 Wheel . | . . . . . . . . . . . . . . . . . . . . . . . Hover . | . . . . . . . . . . . . . . . . . . . . . . . Flight . | . . . . . . . . . . . . . . . . . . . . . . . Utility 93 | 2 2 7 7 1 3 4 1 6 1 4 . 2 1 7 . 4 . 14 5 8 9 5 Device 58 | 1 1 4 5 1 2 2 1 6 . 1 . 2 1 7 . 2 . 9 4 4 3 2 Storage 10 | 1 1 1 1 . 1 1 . . . 2 . . . . . . . . . 1 1 . Processor 11 | . . 1 1 . . 1 . . . . . . . . . . . . 1 3 2 2 Hackware 9 | . . . . . . . . . . . . . . . . 1 . 4 . . 3 1 Protection 5 | . . 1 . . . . . . 1 1 . . . . . 1 . 1 . . . . Artifact . | . . . . . . . . . . . . . . . . . . . . . . . Weapon 103 | 2 2 5 11 6 4 3 4 3 9 4 1 2 . 3 . 7 1 8 3 9 12 4 Energy Gun 70 | 2 . 5 8 4 4 3 4 2 8 3 . 2 . 2 . 4 . 2 2 4 9 2 Energy Cannon 11 | . . . . 2 . . . 1 . 1 . . . 1 . 1 1 1 1 1 . 1 Ballistic Gun 8 | . . . 1 . . . . . . . 1 . . . . . . 4 . 1 1 . Ballistic Cannon 3 | . . . . . . . . . . . . . . . . . . . . 2 1 . Launcher 3 | . . . 1 . . . . . . . . . . . . . . 1 . . . 1 Special Weapon 3 | . . . . . . . . . . . . . . . . 2 . . . . 1 . Impact Weapon 2 | . 2 . . . . . . . . . . . . . . . . . . . . . Slashing Weapon 2 | . . . 1 . . . . . . . . . . . . . . . . 1 . . Piercing Weapon . | . . . . . . . . . . . . . . . . . . . . . . . Special Melee Weapon 1 | . . . . . . . . . 1 . . . . . . . . . . . . . Unidentified Prototypes 22 | . . . . . . 1 . . 2 . 2 . . 2 . . . 1 . 10 3 1 Corrupted Parts 7 | . . . . . . . . . . . . . . . . . . . . 4 3 . System Corruption 30 | . . . . . . . . . . . . . . . . . . . . 27 3 . Parts Lost 83 | . 1 3 1 3 2 . 4 2 . 1 1 . . 1 . 7 . 3 . 8 32 14 Power 12 | . . . . 1 . . 1 . . . 1 . . . . 2 . . . . 5 2 Propulsion 20 | . . . 1 1 1 . . 1 . 1 . . . . . . . 1 . 2 8 4 Utility 22 | . 1 3 . 1 . . . . . . . . . 1 . 1 . 1 . 1 8 5 Weapon 29 | . . . . . 1 . 3 1 . . . . . . . 4 . 1 . 5 11 3 Highest Loss Streak 14 | . 1 1 1 1 2 . 2 1 . 1 1 . . 1 . 3 . 3 . 6 14 13 To Critical Strikes 7 | . . . 1 . . . . . . . 1 . . . . . . 1 . . 4 . Average Backups 21 | 1 7 14 19 19 19 23 23 24 24 24 25 25 24 23 23 23 23 23 21 21 22 5 Power 1 | . 1 1 1 . . 1 . 1 1 1 3 3 2 2 2 1 2 1 1 1 1 . Propulsion 2 | 1 2 2 4 3 3 2 3 3 2 2 2 2 3 3 3 2 2 2 3 2 . . Utility 9 | . 1 4 6 7 9 11 10 11 12 11 12 11 11 11 12 12 14 13 12 12 14 3 Weapon 6 | . 1 5 8 8 6 9 9 7 8 7 7 7 7 5 4 4 3 3 3 3 3 . Tool/Special . | . . . . . . . . . . . . . . . . . . . . . . . Unused Backups 61 | . 1 3 20 2 4 2 3 1 2 4 . . 1 5 . 1 . 3 . 1 7 1 Power 4 | . . 2 . . . . 1 . . 1 . . . . . . . . . . . . Propulsion 10 | . 1 1 3 . 2 . 1 . . . . . . 2 . . . . . . . . Utility 23 | . . . 3 . . 1 1 . 1 2 . . 1 1 . 1 . 3 . 1 7 1 Weapon 24 | . . . 14 2 2 1 . 1 1 1 . . . 2 . . . . . . . . Tool/Special . | . . . . . . . . . . . . . . . . . . . . . . . Average Slot Usage (%) 91 | . 98 94 99 99 99 99 92 91 92 93 94 93 89 90 88 85 84 88 89 87 83 46 Engine 5 | . 13 1 9 9 8 . 1 7 6 6 . . 5 5 5 6 10 5 3 . . 2 Core 1 | . . 8 . . . 7 5 . . . . . . . . 1 . . . . . . Reactor 1 | . . . . . . . . . . . 5 6 5 5 5 1 . 3 4 8 7 4 Treads 16 | . 26 21 17 17 17 23 15 14 20 20 21 20 17 13 11 11 10 10 14 12 11 1 Device 16 | . 12 10 17 17 17 15 15 15 13 13 20 20 18 22 23 21 21 21 19 19 14 10 Storage 6 | . 14 11 9 9 9 7 7 7 6 6 6 6 5 5 5 5 5 5 4 4 4 1 Processor 10 | . . 4 9 9 9 14 15 15 13 13 13 13 11 11 11 9 5 5 7 11 16 6 Hackware 1 | . . . . . . . . . . . . . . . . . . 7 9 5 4 3 Protection 1 | . . 3 . . . . . . 5 5 . . . . . 2 5 1 . . . . Energy Gun 24 | . 26 31 34 34 35 29 29 29 25 25 20 22 23 22 23 17 15 9 11 17 14 2 Energy Cannon 1 | . . . . 1 . . . . . . 1 . . . . 3 10 3 4 2 1 3 Ballistic Gun 1 | . . . . . . . . . . . 4 3 . . . . . 11 6 1 1 . Peak Build Rating 178 | 7 8 22 38 36 34 41 53 55 70 70 79 84 89 103 97 102 102 108 117 147 178 107 Average Rating 66 | 4 7 16 32 34 32 38 50 52 64 65 75 80 85 95 97 96 102 101 111 127 163 65 On Entrance 62 | . 7 8 21 36 34 33 41 51 55 70 55 79 80 89 97 97 97 102 104 117 147 13 Avg Prop Armor Cover (%) 10 | . . . . . . . . 7 . . . . . . . . . . . . 10 11 Naked Turns 60 | . . . . . . . . . . . . . . . . . . . . . 2 58 Heaviest Build 158 | 15 30 38 67 70 64 103 105 109 114 122 128 124 132 136 133 140 150 153 147 152 158 150 Greatest Support 225 | 40 40 43 43 40 40 62 97 95 123 123 120 120 120 155 155 155 150 150 173 173 225 103 Greatest Overweight (x) 3 | . 1 . 1 3 3 1 1 1 . 1 1 1 1 1 . . . 1 . 1 2 1 Average Overweight (x) . | . . . . 1 1 . . 1 . . 1 1 1 . . . . . . . . . Largest Inventory Capacity 25 | 8 15 15 20 20 20 25 25 25 25 25 25 25 25 25 25 25 25 25 25 25 25 25 Average Capacity 22 | 5 13 15 19 20 20 24 25 25 25 24 25 25 25 25 25 25 25 25 25 25 24 12 Most Carried 25 | 3 13 15 20 20 20 25 25 25 25 25 25 25 25 25 25 25 25 25 25 25 25 7 Average Carried 21 | 1 7 14 19 19 19 23 24 24 24 24 25 24 24 24 25 24 24 24 24 24 23 5 Final Capacity 25 | 8 15 15 20 20 20 25 25 25 25 25 25 25 25 25 25 25 25 25 25 25 5 5 Final Carried 25 | 3 13 15 19 20 20 25 24 25 25 25 25 25 25 25 25 25 25 25 25 25 5 4 Class Distribution -------------------- 41% | Scavenger-Tank 20% | Scavenger-Gunner 14% | Gunner 6% | Mutant 4% | Commander-Tank 4% | Tank Dominant Class ---------------- Mutant | -10/Materials Gunner | -9/Materials Gunner | -8/Materials Gunner | -8/Garrison Scavenger-Gunner | -8/Materials Scavenger-Gunner | -7/Factory Scavenger-Tank | -7/Garrison Scavenger-Tank | -7/Factory Scavenger-Tank | -6/Factory Scavenger-Tank | -6/Extension Commander-Tank | -6/Cetus Commander-Tank | -6/Archives Scavenger-Tank | -5/Factory Scavenger-Tank | -5/Garrison Scavenger-Tank | -5/Factory Scavenger-Tank | -5/Garrison Scavenger-Tank | -4/Factory Scavenger-Tank | -4/Garrison Scavenger-Tank | -3/Research Scavenger-Gunner | -3/Testing Bothacker-Gunner | -2/Research Mutant | -1/Access Resources | -11 -10 -9 -8 -8 -8 -7 -7 -7 -6 -6 -6 -6 -5 -5 -5 -5 -4 -4 -3 -3 -2 -1 ----------- Run | Yrd Mat Mat Mat Gar Mat Fac Gar Fac Fac Ext Cet Arc Fac Gar Fac Gar Fac Gar Res Tes Res Acc Matter Collected 5831 | 270 109 268 288 165 127 90 198 130 463 218 123 64 25 130 . 286 . 765 249 728 921 214 Remotely 125 | . . . . . . . . . . . . . . . . . . . . . . 125 Salvage Created 21456 | 123 229 1180 1725 2222 732 468 1604 1178 1572 1532 172 . . 1404 . 1227 . 1494 303 1613 2593 85 Parts 693 | 8 5 50 65 84 30 8 46 44 37 44 3 . . 35 . 33 . 39 8 58 94 2 Haulers Intercepted 13 | . 1 1 3 . 1 . . 2 3 . . . . . . . . . . . 2 . Recyclers Shooed 12 | . . 1 2 . 1 1 . . 2 2 . . . . . . . . . 1 1 1 Parts Field Recycled . | . . . . . . . . . . . . . . . . . . . . . . . Retrieved Matter . | . . . . . . . . . . . . . . . . . . . . . . . Parts Self-Destructed . | . . . . . . . . . . . . . . . . . . . . . . . Prevented . | . . . . . . . . . . . . . . . . . . . . . . . Parts Restored . | . . . . . . . . . . . . . . . . . . . . . . . Kills | -11 -10 -9 -8 -8 -8 -7 -7 -7 -6 -6 -6 -6 -5 -5 -5 -5 -4 -4 -3 -3 -2 -1 ------- Run | Yrd Mat Mat Mat Gar Mat Fac Gar Fac Fac Ext Cet Arc Fac Gar Fac Gar Fac Gar Res Tes Res Acc Combat Hostiles Destroyed 319 | . 4 26 31 46 13 7 27 18 17 18 2 . . 13 . 26 . 20 4 19 27 1 Guns 247 | . 3 24 27 37 10 7 18 16 15 15 . . . 12 . 14 . 12 3 9 25 . Cannons 11 | . . . . . . . . 1 . 1 . . . . . 4 . 3 . 2 . . AOE 21 | . . . 2 3 2 . 4 . . . . . . . . 6 . 3 . 1 . . Classes Destroyed 20 | 2 2 5 1 3 . . 1 . . 3 . . . . . . . . . 1 2 . Worker 9 | . . 2 3 . . . . 1 . . . . . . . . . . . . 2 1 Builder 3 | . . . . . . . . . . . . . . . . . . . . 2 1 . Tunneler 2 | 2 . . . . . . . . . . . . . . . . . . . . . . Hauler 13 | . 1 1 3 . 1 . . 2 3 . . . . . . . . . . . 2 . Recycler 20 | 1 . 1 2 . 2 1 . 4 3 2 . . . . . . . . . 1 3 . Mechanic 1 | . . . . . . . . . . 1 . . . . . . . . . . . . Operator 1 | . . . 1 . . . . . . . . . . . . . . . . . . . Watcher 12 | . . 1 1 . 2 . . 1 1 2 1 . . . . . . . . 1 2 . Swarmer 55 | . . 5 6 4 2 . 10 4 3 . . . . . . 9 . 7 . . 5 . Cutter 3 | . . . . . . . 3 . . . . . . . . . . . . . . . Saboteur 1 | . . . . . . . . . . . . . . . . . . . . . 1 . Grunt 128 | . 4 14 19 21 7 5 8 6 7 5 . . . 6 . 9 . 7 3 1 6 . Brawler 6 | . . 2 . 2 . 1 . . . . . . . . . . . . . 1 . . Duelist 4 | . . . . . . . . . . 1 . . . . . 2 . 1 . . . . Sentry 51 | . . 5 6 10 2 1 3 2 4 9 . . . 2 . 4 . 1 1 . 1 . Specialist 5 | . . . . 4 . . . . . . . . . . . . . 1 . . . . Hunter 29 | . . . . 4 2 . 1 2 1 2 . . . 4 . . . 2 . 6 5 . Programmer 32 | . . . . 3 . . 2 4 2 . . . . . . 2 . . . 10 8 1 Heavy 1 | . . . . . . . . . . . . . . . . . . . . . 1 . Behemoth 3 | . . . . . . . . . . 1 . . . 1 . . . 1 . . . . Cetus Guard 2 | . . . . . . . . . . . 2 . . . . . . . . . . . Protovariant X 1 | . . . . . . . . . . . . . . . . . . . . 1 . . Best Kill Streak 8 | 2 1 4 8 5 7 4 7 4 4 4 2 . . 4 . 8 . 8 1 5 5 1 Combat Bots Only 8 | . 1 4 5 5 7 3 7 3 3 4 1 . . 4 . 8 . 8 1 5 5 1 Max Kills in Single Turn 5 | 1 1 1 4 5 2 1 3 2 2 1 1 . . 1 . 2 . 3 1 2 2 1 Gunslinging 2 | . . . . 2 1 . 1 . . . . . . . . 1 . . . . 1 . Exploded 3 | . . . 2 3 1 . 3 . . . . . . . . 2 . 3 . 1 . . Melee . | . . . . . . . . . . . . . . . . . . . . . . . Uniques/NPCs Destroyed . | . . . . . . . . . . . . . . . . . . . . . . . Combat | -11 -10 -9 -8 -8 -8 -7 -7 -7 -6 -6 -6 -6 -5 -5 -5 -5 -4 -4 -3 -3 -2 -1 -------- Run | Yrd Mat Mat Mat Gar Mat Fac Gar Fac Fac Ext Cet Arc Fac Gar Fac Gar Fac Gar Res Tes Res Acc Hostile Shots Fired 1914 | . 27 102 96 85 45 36 135 62 87 204 32 . 4 33 1 120 . 107 16 139 378 205 Missed 597 | . 5 25 35 21 17 11 49 22 23 86 10 . 2 9 . 29 . 32 8 39 114 60 Hits 1317 | . 22 77 61 64 28 25 86 40 64 118 22 . 2 24 1 91 . 75 8 100 264 145 Melee 20 | . . 4 . . . 1 3 . . 2 . . . . . 8 . . . 2 . . Projectile 1297 | . 22 73 61 64 28 24 83 40 64 116 22 . 2 24 1 83 . 75 8 98 264 145 AOE 1 | . . . . . . . 1 . . . . . . . . . . . . . . . Critical Strikes 69 | . . 4 6 3 1 1 2 1 2 2 2 . . 1 . 4 . 5 . 12 15 8 Part Disruptions 4 | . . . . . . . . . . . . . . . . . . . . 1 1 2 Damage Taken 23049 | . 253 1020 903 942 407 260 1105 587 725 1416 520 . 64 478 18 1964 . 1209 141 2235 5464 3338 Core 3923 | . 48 109 92 216 21 17 106 19 32 180 92 . . 39 . 183 . 168 . 225 755 1621 Absorbed by Shields 581 | . . . . . . . 35 . . 109 99 . . . . . . . 24 314 . . Reduced by Siege Mode 120 | . . . . . . . . . . 26 . . . . . 78 . . . 16 . . Ignored by Resistances 218 | . . . . . . . . . . . . . . 49 . 30 . 112 27 . . . Regen/Repaired (Parts) 246 | . . 143 . . 103 . . . . . . . . . . . . . . . . . Core Remaining (%) 72 | 100 80 72 . . 40 . . 79 . . . 64 . . . 77 . 85 . 82 47 . Volleys Fired 786 | 6 18 70 60 71 24 14 55 34 40 52 10 2 2 52 . 50 . 65 11 69 64 17 Largest 5 | 2 2 3 4 4 4 4 4 4 4 4 4 4 4 4 . 4 . 5 5 5 5 2 Hottest 456 | 100 100 168 320 320 283 248 272 285 298 184 309 306 306 306 . 321 . 405 362 396 456 175 Shots Fired 2772 | 12 36 198 233 239 87 54 208 135 162 194 38 8 8 184 . 171 . 247 46 237 244 31 Gun 2574 | 12 36 198 232 221 85 54 205 133 162 190 34 8 8 184 . 135 . 201 32 197 221 26 Cannon 167 | . . . . 18 . . 1 2 . 4 4 . . . . 30 . 36 13 38 16 5 Launcher 11 | . . . 1 . 2 . 2 . . . . . . . . 4 . 2 . . . . Special 20 | . . . . . . . . . . . . . . . . 2 . 8 1 2 7 . Kinetic 147 | . . . 10 . . . . . . . 5 1 . . . . . 103 9 1 18 . Thermal 2464 | 12 36 198 222 221 85 54 205 135 162 190 33 7 8 184 . 165 . 127 29 194 197 . Explosive 11 | . . . 1 . 2 . 2 . . . . . . . . 4 . 2 . . . . Electromagnetic 130 | . . . . 18 . . 1 . . 4 . . . . . . . 7 7 40 22 31 Robot Hit Streak 76 | 7 12 29 26 23 20 21 27 13 37 41 14 4 4 76 . 32 . 32 17 19 26 12 Robot Miss Streak 4 | 1 2 4 3 3 3 2 3 3 2 4 1 1 2 3 . 3 . 3 1 2 2 1 Penetration Max 1 | . . . . . . . . . . . 1 . . . . . . . . 1 . . Secondary Targets 54 | . . 3 5 11 3 . 7 1 1 6 . . . 2 . 3 . 2 . 1 9 . Max Gunslinging Chain 2 | . . 1 1 2 1 . 1 1 1 1 . . . 1 . 1 . 1 . 1 2 . Shots Hit Robots 1971 | 9 38 131 156 163 57 36 154 83 128 182 32 3 6 131 . 114 . 142 32 175 172 27 Core Hits 913 | 4 10 40 71 121 38 24 81 56 62 59 12 2 2 72 . 57 . 60 9 51 71 11 Critical Kills 2 | . . . . . . . . . . . . . . . . 1 . . . 1 . . Critical Parts Destroyed 6 | . 1 . . . . . . . . . . . . . . . . . . 3 2 . Critical Strikes 130 | . 4 9 17 5 3 1 14 11 6 6 3 . . 2 . 6 . 8 3 16 15 1 Burn 119 | . 3 9 17 5 3 1 14 11 6 6 3 . . 2 . 5 . 8 3 11 12 . Meltdown 1 | . . . . . . . . . . . . . . . . 1 . . . . . . Destroy 6 | . . . . . . . . . . . . . . . . . . . . 4 2 . Blast 1 | . . . . . . . . . . . . . . . . . . . . . 1 . Corrupt 1 | . . . . . . . . . . . . . . . . . . . . . . 1 Smash 1 | . 1 . . . . . . . . . . . . . . . . . . . . . Sever 1 | . . . . . . . . . . . . . . . . . . . . 1 . . Melee Attacks 41 | . 9 . . . . . . . 1 19 . . . . . 1 . . . 11 . . Impact 9 | . 9 . . . . . . . . . . . . . . . . . . . . . Slashing 11 | . . . . . . . . . . . . . . . . . . . . 11 . . Piercing . | . . . . . . . . . . . . . . . . . . . . . . . Sneak Attacks 19 | . . . . . . . . . . 19 . . . . . . . . . . . . Combat Hostiles . | . . . . . . . . . . . . . . . . . . . . . . . Follow-up Attacks . | . . . . . . . . . . . . . . . . . . . . . . . Damage Inflicted 46268 | 113 576 2015 2988 4242 1360 731 3439 2041 2835 3321 743 90 139 3064 . 3280 . 3135 759 5219 5597 581 Guns 40141 | 113 374 1993 2755 3979 1224 731 3161 1970 2796 3149 645 90 139 3064 . 2200 . 2397 498 3288 5433 142 Cannons 2364 | . . . . 18 . . . 31 . 96 98 . . . . 453 . 492 261 674 152 89 Explosions 2228 | . . . 224 245 136 . 278 . . . . . . . . 627 . 246 . 472 . . Melee 961 | . 189 . . . . . . . . . . . . . . . . . . 772 . . Ramming 574 | . 13 22 9 . . . . 40 39 76 . . . . . . . . . 13 12 350 Kinetic 1429 | . . . 92 . . . . . . . 131 29 . . . . . 886 139 . 152 . Thermal 40040 | 113 374 1993 2663 4224 1224 731 3161 2001 2796 3149 612 61 139 3064 . 2653 . 1831 424 3895 4932 . Explosive 1511 | . . . 224 . 136 . 278 . . . . . . . . 627 . 246 . . . . Electromagnetic 1753 | . . . . 18 . . . . . 96 . . . . . . . 172 196 539 501 231 Impact 189 | . 189 . . . . . . . . . . . . . . . . . . . . . Slashing 772 | . . . . . . . . . . . . . . . . . . . . 772 . . Piercing . | . . . . . . . . . . . . . . . . . . . . . . . Highest Corruption 34 | . . 4 . . . . 2 3 2 6 6 6 1 1 1 1 . . . 34 24 16 Average Corruption 3 | . . 4 . . . . 1 2 1 3 6 6 1 1 1 1 . . . 9 9 8 Corruption Purged 3 | . . . . . . . . 3 . . . . . . . . . . . . . . Corruption Blocked . | . . . . . . . . . . . . . . . . . . . . . . . Effects 215 | . . 17 . . . . 7 16 18 37 18 11 2 8 2 10 . . . 21 43 5 Message Errors 50 | . . 4 . . . . 1 5 4 10 4 3 . 2 . 4 . . . 4 9 . Matter Fused 40 | . . 5 . . . . 2 1 4 8 1 1 . 2 . 2 . . . 5 9 . Heat Flow Errors 30 | . . 1 . . . . 2 1 1 5 3 4 1 2 2 . . . . 1 5 2 Energy Discharges 27 | . . 2 . . . . . 3 5 6 3 2 . . . 1 . . . 2 3 . Parts Rejected 4 | . . . . . . . . . . . . 1 . . . 1 . . . 2 . . Parts Fused 4 | . . . . . . . . 1 . 1 . . . . . 1 . . . 1 . . Data Loss (minor) 23 | . . 3 . . . . 2 3 2 2 4 . 1 . . . . . . . 5 1 Data Loss (major) 8 | . . 1 . . . . . 2 . 2 . . . . . . . . . . 1 2 Misfires 9 | . . 1 . . . . . . 2 2 1 . . 1 . . . . . 1 1 . Alerts 3 | . . . . . . . . . . 1 1 . . . . . . . . . 1 . Misdirections 4 | . . . . . . . . . . . . . . . . . . . . 1 3 . Weapon Failures 13 | . . . . . . . . . . . 1 . . 1 . 1 . . . 4 6 . Overload Shots 8 | . . . . . . . . . 8 . . . . . . . . . . . . . Overflow Damage 193 | . 57 . . . 8 . . . . . . . . . . 16 . 15 . 63 21 13 Projectiles 46 | . . . . . . . . . . . . . . . . 16 . . . 9 21 . Explosions 39 | . . . . . 8 . . . . . . . . . . . . 15 . 16 . . Melee 108 | . 57 . . . . . . . . . . . . . . . . . . 38 . 13 Knockbacks 9 | . . 1 . . . . . . 1 2 . . . . . . . . . . 1 4 Impact 8 | . . 1 . . . . . . 1 2 . . . . . . . . . . . 4 Kinetic 1 | . . . . . . . . . . . . . . . . . . . . . 1 . Secondary . | . . . . . . . . . . . . . . . . . . . . . . . Self-Inflicted Damage 195 | . . . . 38 . . 47 . . . . . . . . 15 . 29 . 61 3 2 Shots 7 | . . . . 1 . . 2 . . . . . . . . 2 . 1 . 1 . . Rammed 24 | . 6 1 1 . . . . 3 4 3 . . . . . . . . . 1 4 1 Targets Rammed 62 | . 6 2 1 . . . . 3 4 3 . . . . . . . . . 1 5 37 Kicked 36 | . . . . . . . . . . . . . . . . . . . . . . 36 Crushed 2 | . . 1 . . . . . . . . . . . . . . . . . . 1 . Highest Temperature 405 | 120 186 336 102 249 258 294 290 259 194 208 163 210 143 197 77 246 . 362 66 207 372 405 Average Temperature 78 | 52 71 108 24 39 102 113 94 93 53 113 24 75 59 68 63 69 . 103 27 45 93 126 Received Heat Transfer 3613 | . 141 342 477 396 126 105 186 66 204 373 40 . . 147 9 369 . 311 48 30 243 . Effects 10 | . . 2 . . . 2 3 . . . . . . . . . . 3 . . . . Shutdowns 1 | . . . . . . . . . . . . . . . . . . 1 . . . . Energy Bleed 2 | . . 1 . . . . . . . . . . . . . . . 1 . . . . Interference 5 | . . . . . . 2 3 . . . . . . . . . . . . . . . Short Circuit 1 | . . . . . . . . . . . . . . . . . . 1 . . . . Damage (minor) 1 | . . 1 . . . . . . . . . . . . . . . . . . . . Siege Activations 3 | . . . . . . . . . . 1 . . . . . 1 . . . 1 . . Total Turns 52 | . . . . . . . . . . 24 . . . . . 25 . . . 3 . . Longest Duration 25 | . . . . . . . . . . 24 . . . . . 25 . . . 3 . . Martial Activations . | . . . . . . . . . . . . . . . . . . . . . . . Shielding Activations . | . . . . . . . . . . . . . . . . . . . . . . . Robots Disrupted 1 | . . . . . . . . . . . . . . . . . . . . . . 1 Combat Hostiles 1 | . . . . . . . . . . . . . . . . . . . . . . 1 Robots Corrupted 4 | . 1 . . . . . . . . . . . . . . . . . 1 1 . 1 Combat Hostiles 4 | . 1 . . . . . . . . . . . . . . . . . 1 1 . 1 Parts Fried 18 | . . . . . . . . . . 3 1 . . . . . . 2 1 6 5 . Impact Corruptions 5 | . 2 . . . . . . . . 1 . . . . . . . . . . . 2 Robots Melted 52 | . . 3 2 7 1 . 10 1 5 2 2 . . 5 . 2 . 4 . 6 2 . Combat Hostiles 36 | . . 2 2 6 1 . 5 1 2 2 2 . . 1 . 2 . 2 . 6 2 . Parts Melted 307 | 1 5 18 18 21 6 9 27 26 25 25 4 . . 20 . 19 . 17 5 32 29 . Heat Transferred 85131 | 333 1332 5587 7216 9175 2997 1698 7842 4913 5896 6456 1377 124 235 6055 . 5214 . 4451 1211 6544 6475 . Parts Sabotaged . | . . . . . . . . . . . . . . . . . . . . . . . Parts Stolen . | . . . . . . . . . . . . . . . . . . . . . . . Parts Stripped . | . . . . . . . . . . . . . . . . . . . . . . . Power Chain Reactions 3 | . . . . 1 . . . . . . . . . . . . . . . 2 . . Alert | -11 -10 -9 -8 -8 -8 -7 -7 -7 -6 -6 -6 -6 -5 -5 -5 -5 -4 -4 -3 -3 -2 -1 ------- Run | Yrd Mat Mat Mat Gar Mat Fac Gar Fac Fac Ext Cet Arc Fac Gar Fac Gar Fac Gar Res Tes Res Acc Maximum Alert Level 5 | . . 1 1 5 3 . 3 2 1 1 . . . 4 2 4 3 4 3 2 2 1 Low Security (%) 40 | 100 100 73 88 . . 100 29 16 30 91 100 100 100 5 . . . . . . 26 76 Level 1 21 | . . 26 11 10 16 . 13 82 69 8 . . . 8 . . . . . 28 49 23 Level 2 18 | . . . . 31 77 . 47 . . . . . . 15 100 17 . 11 . 71 23 . Level 3 9 | . . . . 17 6 . 9 . . . . . . 39 . 23 100 47 100 . . . Level 4 9 | . . . . 39 . . . . . . . . . 31 . 58 . 40 . . . . Level 5 . | . . . . . . . . . . . . . . . . . . . . . . . High Security . | . . . . . . . . . . . . . . . . . . . . . . . Max Security . | . . . . . . . . . . . . . . . . . . . . . . . Peak Influence 1625 | 10 45 362 280 1625 796 196 780 409 296 225 152 161 96 1289 676 1451 761 1560 913 574 588 286 Initial 877 | . . . 144 180 791 196 . 409 163 133 74 38 10 39 676 452 761 525 877 499 321 286 Average 413 | 1 4 114 149 907 476 106 380 277 217 123 66 87 54 861 663 1060 755 1094 872 437 306 115 Influence Increases 13020 | 15 137 727 903 1535 443 213 820 560 603 782 334 163 146 1400 . 1089 . 1185 181 740 979 65 Destroy 0b10 Robot/C 7400 | . 80 520 620 940 260 140 540 360 340 480 160 80 40 520 . 680 . 560 100 400 560 20 Destroy 0b10 Robot/NC 430 | 15 5 25 50 10 25 5 30 40 35 40 10 . 10 30 . . . 20 . 25 50 5 Destroy Leader 1022 | . 12 114 118 30 86 30 40 116 98 36 . . 22 40 . 30 . 40 10 62 128 10 Allied During Kill 1002 | . . . . 17 . . . . . 178 150 80 72 371 . 36 . 69 2 4 23 . Successful Hack 414 | . 24 33 23 49 21 36 . 28 51 30 . . . . . . . . 24 81 14 . Disable Machine 300 | . . 30 30 . 15 . . 15 15 . . . . . . 30 . . 30 90 45 . Anti-Garrison Action 1500 | . . . . 400 . . 150 . . . . . . 350 . 250 . 350 . . . . Destroy Structure 547 | . 1 5 17 59 21 2 15 1 4 3 14 3 2 89 . 33 . 146 . 48 84 . Partial Spotted 75 | . . . . . 15 . . . 45 . . . . . . . . . . 15 . . Lose Combat Pursuer 330 | . 15 . 45 30 . . 45 . 15 15 . . . . . 30 . . 15 15 75 30 Influence Decreases 12998 | 15 137 383 970 187 1636 645 40 1007 664 921 371 228 121 167 643 284 700 376 853 1057 1072 521 Entered New Map 5439 | . . . 200 97 834 236 . 371 170 139 59 58 21 17 613 194 690 226 683 389 250 192 Time Decay 5697 | 15 137 353 610 . 482 409 . 616 494 592 202 150 80 . 30 . 10 . 170 568 482 297 Lost Part 712 | . . 30 10 30 20 . 40 20 . 10 10 . . 10 . 70 . 30 . 80 320 32 Lost Ally 700 | . . . . 60 . . . . . 180 100 20 20 140 . 20 . 120 . 20 20 . Purge Threat 450 | . . . 150 . 300 . . . . . . . . . . . . . . . . . Squads Dispatched 39 | . . 2 1 . 2 4 . 6 6 1 . . 1 . . . . . 1 5 9 1 Investigation 7 | . . 1 . . . 2 . 1 1 . . . 1 . . . . . 1 . . . Extermination 13 | . . . . . . 2 . 3 2 . . . . . . . . . . 2 3 1 Reinforcement 14 | . . 1 1 . 2 . . 2 3 1 . . . . . . . . . 2 2 . Assault 4 | . . . . . . . . . . . . . . . . . . . . 1 3 . Garrison 1 | . . . . . . . . . . . . . . . . . . . . . 1 . Intercept . | . . . . . . . . . . . . . . . . . . . . . . . Searches Triggered . | . . . . . . . . . . . . . . . . . . . . . . . Construction Impeded 3 | . . . . . 1 . . . . . . . . . . . . . . 1 1 . Haulers Reinforced 1 | . . . . . . . . . 1 . . . . . . . . . . . . . Active Scanning Responses . | . . . . . . . . . . . . . . . . . . . . . . . Cargo Convoy Interrupts 2 | . . . . . . . . . 1 . . . . . . . . . . . 1 . Stealth | -11 -10 -9 -8 -8 -8 -7 -7 -7 -6 -6 -6 -6 -5 -5 -5 -5 -4 -4 -3 -3 -2 -1 --------- Run | Yrd Mat Mat Mat Gar Mat Fac Gar Fac Fac Ext Cet Arc Fac Gar Fac Gar Fac Gar Res Tes Res Acc Distress Signals 27 | . 2 4 4 . 3 . . 1 1 2 2 . . . . . . . 1 4 3 . Communications Jammed . | . . . . . . . . . . . . . . . . . . . . . . . Distress Signals . | . . . . . . . . . . . . . . . . . . . . . . . Times Spotted 510 | . 14 33 43 40 26 10 30 29 19 30 10 4 2 22 3 39 1 30 4 35 70 16 Peak Tracking Total 18 | . 4 4 5 5 7 3 6 5 3 5 5 1 1 4 3 8 1 6 2 5 18 11 Tactical Retreats 16 | . 1 . 1 2 . . 1 . 1 1 . . . . . 2 . . 1 1 4 1 Traps | -11 -10 -9 -8 -8 -8 -7 -7 -7 -6 -6 -6 -6 -5 -5 -5 -5 -4 -4 -3 -3 -2 -1 ------- Run | Yrd Mat Mat Mat Gar Mat Fac Gar Fac Fac Ext Cet Arc Fac Gar Fac Gar Fac Gar Res Tes Res Acc Traps Triggered 39 | . 1 1 . 8 . . 8 2 5 5 . . . 1 . . . 4 1 1 2 . Indirectly . | . . . . . . . . . . . . . . . . . . . . . . . Trap Hack Attempts . | . . . . . . . . . . . . . . . . . . . . . . . Triggered . | . . . . . . . . . . . . . . . . . . . . . . . Disarmed . | . . . . . . . . . . . . . . . . . . . . . . . Reprogrammed . | . . . . . . . . . . . . . . . . . . . . . . . Reused . | . . . . . . . . . . . . . . . . . . . . . . . Traps Extracted . | . . . . . . . . . . . . . . . . . . . . . . . Installed . | . . . . . . . . . . . . . . . . . . . . . . . Triggered . | . . . . . . . . . . . . . . . . . . . . . . . Machines | -11 -10 -9 -8 -8 -8 -7 -7 -7 -6 -6 -6 -6 -5 -5 -5 -5 -4 -4 -3 -3 -2 -1 ---------- Run | Yrd Mat Mat Mat Gar Mat Fac Gar Fac Fac Ext Cet Arc Fac Gar Fac Gar Fac Gar Res Tes Res Acc Machines Disabled 37 | . . 2 2 2 1 . 1 1 1 . . . . 3 . 7 . 6 2 6 3 . Max in Single Turn 2 | . . 1 1 1 1 . 1 1 1 . . . . 1 . 1 . 2 1 1 1 . Garrison Access 5 | . . . . . . 1 . . 1 . . . . . . . . . . 1 1 1 Garrison Relay 15 | . . . . 2 . . 1 . . . . . . 3 . 5 . 4 . . . . Phase Generator 1 | . . . . . . . . . . . . . . . . . . 1 . . . . Machines Repaired . | . . . . . . . . . . . . . . . . . . . . . . . Machines Dismantled 1 | . . . . . . . . . . . . . . . . 1 . . . . . . Machines Sabotaged . | . . . . . . . . . . . . . . . . . . . . . . . Overloaded Fab Kills . | . . . . . . . . . . . . . . . . . . . . . . . Hacking | -11 -10 -9 -8 -8 -8 -7 -7 -7 -6 -6 -6 -6 -5 -5 -5 -5 -4 -4 -3 -3 -2 -1 --------- Run | Yrd Mat Mat Mat Gar Mat Fac Gar Fac Fac Ext Cet Arc Fac Gar Fac Gar Fac Gar Res Tes Res Acc Machines Accessed 90 | . 8 8 10 4 8 7 1 7 7 8 . 1 1 . 1 3 1 2 1 5 4 3 Terminals 58 | . 7 4 7 4 6 2 1 4 2 8 . . . . . 3 . 2 . 4 2 2 Fabricators 2 | . . . . . . . . 1 1 . . . . . . . . . . . . . Repair Stations 5 | . . 2 . . 1 . . 1 1 . . . . . . . . . . . . . Recycling Units 7 | . 1 1 1 . . 1 . 1 1 . . . . . . . . . 1 . . . Scanalyzers 7 | . . 1 1 . 1 2 . . 1 . . . . . . . . . . . 1 . Garrison Access 10 | . . . 1 . . 2 . . 1 . . . 1 . 1 . 1 . . 1 1 1 Total Hacks 215 | . 22 25 33 8 24 15 1 14 20 12 . 1 1 . 1 7 1 2 2 11 10 5 Successful 95 | . 9 14 20 4 7 5 . 4 10 6 . 1 1 . 1 . 1 . 1 6 4 1 Failed 115 | . 13 10 12 4 16 9 1 10 10 6 . . . . . 7 . 2 1 5 5 4 Catastrophic 25 | . 3 1 2 . 2 3 1 4 2 2 . . . . . 2 . 2 . . . 1 Database Lockouts 5 | . . 1 1 . 1 1 . . . . . . . . . . . . . . 1 . Manual 93 | . 18 13 19 . 4 4 . 11 12 1 1 6 . . . . . . 2 2 . . Terminals 147 | . 19 14 25 8 18 6 1 7 7 12 . . . . . 7 . 2 . 10 7 4 Fabricators 4 | . . . . . . . . 2 2 . . . . . . . . . . . . . Repair Stations 11 | . . 5 . . 3 . . 2 1 . . . . . . . . . . . . . Recycling Units 21 | . 3 4 4 . . 2 . 3 3 . . . . . . . . . 2 . . . Scanalyzers 20 | . . 2 3 . 3 4 . . 6 . . . . . . . . . . . 2 . Garrison Access 11 | . . . 1 . . 3 . . 1 . . . 1 . 1 . 1 . . 1 1 1 Terminal Hacks 40 | . 5 5 9 4 3 . . 1 . 6 . 1 . . . . . . . 4 2 . Record 2 | . . . 1 . . . . . . . . 1 . . . . . . . . . . Robot Analysis 4 | . 2 . . . . . . . . 1 . . . . . . . . . 1 . . Prototype ID Bank 4 | . 1 1 2 . . . . . . . . . . . . . . . . . . . Open Door 6 | . . . . 1 . . . . . 5 . . . . . . . . . . . . Open DSF 1 | . . . . . . . . 1 . . . . . . . . . . . . . . Level Access Points 1 | . . . 1 . . . . . . . . . . . . . . . . . . . Branch Access Points 1 | . . . . . 1 . . . . . . . . . . . . . . . . . Emergency Access Points 3 | . . 2 . 1 . . . . . . . . . . . . . . . . . . Scanalyzer Index 1 | . . . . . . . . . . . . . . . . . . . . 1 . . Alert Level 4 | . . 1 3 . . . . . . . . . . . . . . . . . . . Unreport Threat 3 | . . . 1 . 2 . . . . . . . . . . . . . . . . . Locate Traps 3 | . . 1 . . . . . . . . . . . . . . . . . 1 1 . Patrol Status 1 | . 1 . . . . . . . . . . . . . . . . . . . . . Recall Reinforcements 1 | . . . 1 . . . . . . . . . . . . . . . . . . . Hauler Manifests 3 | . 1 . . . . . . . . . . . . . . . . . . 1 1 . Garrison Registry 1 | . . . . 1 . . . . . . . . . . . . . . . . . . Patrol Navigation 1 | . . . . 1 . . . . . . . . . . . . . . . . . . Fabricator Hacks . | . . . . . . . . . . . . . . . . . . . . . . . Repair Station Hacks 6 | . . 4 . . 2 . . . . . . . . . . . . . . . . . Scan Component 3 | . . 2 . . 1 . . . . . . . . . . . . . . . . . Repair 3 | . . 2 . . 1 . . . . . . . . . . . . . . . . . Recycling Unit Hacks . | . . . . . . . . . . . . . . . . . . . . . . . Scanalyzer 9 | . . 1 2 . 1 2 . . 2 . . . . . . . . . . . 1 . Retrieve Study 9 | . . 1 2 . 1 2 . . 2 . . . . . . . . . . . 1 . Garrison Access Hacks 10 | . . . 1 . . 2 . . 1 . . . 1 . 1 . 1 . . 1 1 1 Unlock Access 5 | . . . 1 . . 1 . . . . . . 1 . 1 . 1 . . . . . Seal Access 5 | . . . . . . 1 . . 1 . . . . . . . . . . 1 1 1 Unauthorized Hacks 30 | . 4 4 8 . 1 1 . 3 7 . . . . . . . . . 1 1 . . Terminals 15 | . 2 2 4 . 1 . . 1 4 . . . . . . . . . . 1 . . Track 1 | . . . . . . . . . 1 . . . . . . . . . . . . . Botnet 11 | . 1 2 3 . 1 . . 1 2 . . . . . . . . . . 1 . . Operators 3 | . 1 . 1 . . . . . 1 . . . . . . . . . . . . . Fabricators 1 | . . . . . . . . . 1 . . . . . . . . . . . . . Fabnet 1 | . . . . . . . . . 1 . . . . . . . . . . . . . Repair Stations . | . . . . . . . . . . . . . . . . . . . . . . . Recycling Units 14 | . 2 2 4 . . 1 . 2 2 . . . . . . . . . 1 . . . Monitor 1 | . . . 1 . . . . . . . . . . . . . . . . . . . Reject 4 | . 1 1 1 . . . . 1 . . . . . . . . . . . . . . Recyclers 7 | . 1 1 1 . . 1 . 1 1 . . . . . . . . . 1 . . . Mask 2 | . . . 1 . . . . . 1 . . . . . . . . . . . . . Scanalyzers . | . . . . . . . . . . . . . . . . . . . . . . . Garrison Access . | . . . . . . . . . . . . . . . . . . . . . . . Data Cores Recovered 1 | . . . 1 . . . . . . . . . . . . . . . . . . . Used 1 | . . . 1 . . . . . . . . . . . . . . . . . . . Hacking Detections 70 | . 7 8 7 4 5 5 1 6 6 5 1 . 1 . . 3 . 2 1 4 2 2 Full Trace Events 6 | . . 1 . . 2 2 . 1 . . . . . . . . . . . . . . Feedback Events . | . . . . . . . . . . . . . . . . . . . . . . . Feedback Blocked . | . . . . . . . . . . . . . . . . . . . . . . . Robot Schematics Acquired . | . . . . . . . . . . . . . . . . . . . . . . . Robots Built . | . . . . . . . . . . . . . . . . . . . . . . . Authchips . | . . . . . . . . . . . . . . . . . . . . . . . Time . | . . . . . . . . . . . . . . . . . . . . . . . Total Robot Build Rating . | . . . . . . . . . . . . . . . . . . . . . . . Part Schematics Acquired . | . . . . . . . . . . . . . . . . . . . . . . . Parts Built . | . . . . . . . . . . . . . . . . . . . . . . . Authchips . | . . . . . . . . . . . . . . . . . . . . . . . Time . | . . . . . . . . . . . . . . . . . . . . . . . Total Part Build Rating . | . . . . . . . . . . . . . . . . . . . . . . . Part Studies Acquired 9 | . . 1 2 . 1 2 . . 2 . . . . . . . . . . . 1 . Parts Repaired 3 | . . 2 . . 1 . . . . . . . . . . . . . . . . . Time 65 | . . 39 . . 26 . . . . . . . . . . . . . . . . . Parts Recycled . | . . . . . . . . . . . . . . . . . . . . . . . Recycled Matter . | . . . . . . . . . . . . . . . . . . . . . . . Retrieved Matter . | . . . . . . . . . . . . . . . . . . . . . . . Retrieved Components . | . . . . . . . . . . . . . . . . . . . . . . . Parts Scanalyzed . | . . . . . . . . . . . . . . . . . . . . . . . Part Schematics Acquired . | . . . . . . . . . . . . . . . . . . . . . . . Parts Damaged . | . . . . . . . . . . . . . . . . . . . . . . . Bothacking | -11 -10 -9 -8 -8 -8 -7 -7 -7 -6 -6 -6 -6 -5 -5 -5 -5 -4 -4 -3 -3 -2 -1 ------------ Run | Yrd Mat Mat Mat Gar Mat Fac Gar Fac Fac Ext Cet Arc Fac Gar Fac Gar Fac Gar Res Tes Res Acc Used RIF Installer 5 | . . . . 1 . . 1 . . . . . . 1 . 1 . 1 . . . . Coupler Efficiency 1 | . . . . . . . . . . . . . . . . 1 . . . . . . Hotswap 1 | . . . . . . . . . . . . . . 1 . . . . . . . . Zone Cloak 1 | . . . . . . . 1 . . . . . . . . . . . . . . . Watcher Feeds 1 | . . . . . . . . . . . . . . . . . . 1 . . . . Robots Hacked 15 | . . . . . . . . . 1 . . . . 1 . 1 . 5 1 2 4 . Non-combat 1 | . . . . . . . . . 1 . . . . . . . . . . . . . Combat 14 | . . . . . . . . . . . . . . 1 . 1 . 5 1 2 4 . Robot Hacks Applied 14 | . . . . . . . . . 1 . . . . . . 1 . 5 1 2 4 . find_chute 1 | . . . . . . . . . 1 . . . . . . . . . . . . . amplify_resonance 2 | . . . . . . . . . . . . . . . . . . 1 . . 1 . overwrite_iff 8 | . . . . . . . . . . . . . . . . . . 4 1 2 1 . streamctrl_high 2 | . . . . . . . . . . . . . . . . . . . . . 2 . formatsys_high 1 | . . . . . . . . . . . . . . . . 1 . . . . . . Relay Couplers Released 75 | . . . . 6 . . 9 . 4 . . . . 11 . 20 . 17 . . 8 . Machine Destruction 59 | . . . . 6 . . 5 . . . . . . 11 . 20 . 17 . . . . Programmers 16 | . . . . . . . 4 . 4 . . . . . . . . . . . 8 . Attached 9 | . . . . . . . . . . . . . . . . 1 . 4 . . 3 1 Fabnet Peak Effective % 3 | . . . . . . . . . . . . . 3 3 3 3 1 1 . . . . Autooverrided 1 | . . . . . . . . . . . . . . 1 . . . . . . . . Robots Rewired 24 | . . . . 6 . . . . . 16 . . . . . 2 . . . . . . Allies Hacked . | . . . . . . . . . . . . . . . . . . . . . . . Hacks Repelled . | . . . . . . . . . . . . . . . . . . . . . . . Allies | -11 -10 -9 -8 -8 -8 -7 -7 -7 -6 -6 -6 -6 -5 -5 -5 -5 -4 -4 -3 -3 -2 -1 -------- Run | Yrd Mat Mat Mat Gar Mat Fac Gar Fac Fac Ext Cet Arc Fac Gar Fac Gar Fac Gar Res Tes Res Acc Total Allies 51 | . . . . 6 . . . . . 24 5 . . 1 . 3 . 6 1 2 3 . Largest Group 13 | . . . . 3 . . . . . 13 13 11 10 8 . 2 2 4 1 1 2 . Highest-Rated Group 847 | . . . . 76 . . . . . 469 847 652 612 556 . 85 55 284 47 51 138 . Highest-Rated Ally 159 | . . . . 31 . . . . . 159 159 96 96 96 . 85 29 95 47 51 69 . Total Orders . | . . . . . . . . . . . . . . . . . . . . . . . Ally Attacks 398 | . . . . 17 . . . . . 112 67 24 15 73 . 22 . 48 3 5 12 . Total Damage 11985 | . . . . 318 . . . . . 2016 1847 747 410 2663 . 780 . 2246 101 191 666 . Kills 60 | . . . . 1 . . . . . 9 7 4 5 15 . 8 . 8 1 1 1 . Allies Corrupted 1 | . . . . . . . . . . . . . . . . . . . . . 1 . Allies Melted 1 | . . . . . . . . . . 1 . . . . . . . . . . . . Intel | -11 -10 -9 -8 -8 -8 -7 -7 -7 -6 -6 -6 -6 -5 -5 -5 -5 -4 -4 -3 -3 -2 -1 ------- Run | Yrd Mat Mat Mat Gar Mat Fac Gar Fac Fac Ext Cet Arc Fac Gar Fac Gar Fac Gar Res Tes Res Acc Active Infowar (turns) 16248 | 51 411 . . . . 957 1312 2045 1312 2297 531 317 177 1110 66 1127 39 1398 348 1351 849 550 Sensors 2178 | . . . . . . . . . . . . . . . . . . . 178 1296 704 . Terrain 854 | . . . . . . . . . . . . . . . . . . . . . 415 439 Structural 594 | . . . . . . . . . . . . . . 462 66 66 . . . . . . Seismic 1067 | 51 411 . . . . . . . . . . . . . . . . . . 55 . 550 T.N.C. 12956 | . . . . . . 957 1312 2045 1312 2297 531 317 177 1110 66 1127 39 1398 268 . . . Robot Analysis Total 4 | . 2 . . . . . . . . 1 . . . . . . . . . 1 . . Derelict Logs Recovered . | . . . . . . . . . . . . . . . . . . . . . . . Drone Launches . | . . . . . . . . . . . . . . . . . . . . . . . Drone Recoveries . | . . . . . . . . . . . . . . . . . . . . . . . Exploration | -11 -10 -9 -8 -8 -8 -7 -7 -7 -6 -6 -6 -6 -5 -5 -5 -5 -4 -4 -3 -3 -2 -1 ------------- Run | Yrd Mat Mat Mat Gar Mat Fac Gar Fac Fac Ext Cet Arc Fac Gar Fac Gar Fac Gar Res Tes Res Acc Turns Passed 24296 | 124 883 1120 1995 2105 1256 982 1324 2045 1312 2297 531 317 177 1110 66 1127 39 1398 348 1715 1253 772 Spaces Moved 10339 | 59 459 423 734 838 538 443 472 830 660 1013 156 100 72 496 41 516 20 680 137 724 534 394 Core 98 | 2 . . . . . . . . . . . . . . . . . . . . 2 94 Treads 9863 | 57 429 423 734 838 538 443 472 830 660 1013 156 100 72 496 41 516 20 680 137 724 484 . Legs 378 | . 30 . . . . . . . . . . . . . . . . . . . 48 300 Wheels . | . . . . . . . . . . . . . . . . . . . . . . . Hover . | . . . . . . . . . . . . . . . . . . . . . . . Flight . | . . . . . . . . . . . . . . . . . . . . . . . Fastest Speed 50 | 50 120 160 160 200 200 155 152 220 160 160 212 229 229 160 160 160 160 160 160 160 150 50 Average Speed 183 | 156 157 160 218 200 200 199 222 220 162 176 225 229 229 178 160 160 160 162 160 168 165 139 Slowest Speed 280 | 160 190 160 225 280 280 208 232 240 163 229 229 229 229 229 160 160 160 240 160 245 240 178 Overloaded Moves . | . . . . . . . . . . . . . . . . . . . . . . . Propulsion Burnouts . | . . . . . . . . . . . . . . . . . . . . . . . Robots Hopped . | . . . . . . . . . . . . . . . . . . . . . . . Potential Cave-ins . | . . . . . . . . . . . . . . . . . . . . . . . Cave-ins Triggered . | . . . . . . . . . . . . . . . . . . . . . . . Exploration Rate (%) 43 | 4 78 44 69 81 46 10 53 27 16 96 63 85 4 72 1 56 1 82 3 74 20 10 Regions Visited 22 Branch Regions 4 Pre-discovered Areas . | . . . . . . . . . . . . . . . . . . . . . . . Known Exits Taken 8 | . . . 1 . 1 1 . . . . . . 1 . 1 . 1 . 1 1 . . Unknown Exits Taken 9 | 1 1 1 . . . . . 1 1 1 1 1 . . . . . . . . 1 . Scrap Searched . | . . . . . . . . . . . . . . . . . . . . . . . Spaces Dug 10 | . . . . . . . . . . . . . . . . . . . . 3 7 . Terrain Destroyed 203 | . . . 11 4 21 . 10 . 1 . 1 . . 1 . 18 . 80 1 27 28 . Melee . | . . . . . . . . . . . . . . . . . . . . . . . Projectile 46 | . . . . . . . . . 1 . 1 . . 1 . . . 7 1 7 28 . AOE 157 | . . . 11 4 21 . 10 . . . . . . . . 18 . 73 . 20 . . Terrain Rammed . | . . . . . . . . . . . . . . . . . . . . . . . Walls Destroyed . | . . . . . . . . . . . . . . . . . . . . . . . Machines Disabled . | . . . . . . . . . . . . . . . . . . . . . . . Actions | -11 -10 -9 -8 -8 -8 -7 -7 -7 -6 -6 -6 -6 -5 -5 -5 -5 -4 -4 -3 -3 -2 -1 --------- Run | Yrd Mat Mat Mat Gar Mat Fac Gar Fac Fac Ext Cet Arc Fac Gar Fac Gar Fac Gar Res Tes Res Acc Total 13735 | 75 559 720 989 1079 655 505 606 957 799 1390 312 185 81 613 41 701 27 853 241 1049 748 550 Wait 1407 | 1 38 166 90 75 59 20 39 45 55 119 138 71 3 30 . 66 5 35 53 162 69 68 Move 10321 | 58 458 422 734 837 537 443 471 829 659 1012 155 99 71 495 41 515 20 679 136 723 533 394 Hop . | . . . . . . . . . . . . . . . . . . . . . . . Pick Up 185 | 3 11 13 33 10 7 10 5 12 6 22 . 1 2 5 . 9 1 10 5 5 12 3 Fast Attach 168 | 7 6 8 13 3 6 3 3 3 5 9 3 5 1 4 . 10 . 11 5 27 18 18 Attach 67 | . 2 2 3 2 1 2 4 1 2 2 . . 1 2 . 5 1 4 5 5 17 6 Detach 30 | . 2 1 1 . . . 2 1 . 2 . . . 2 . 1 . 3 4 6 3 2 Swap 167 | . 5 13 10 11 8 4 6 9 11 10 2 1 . 6 . 9 . 14 12 20 16 . Drop 266 | . 4 23 44 12 13 9 9 18 16 14 4 6 1 14 . 10 . 26 10 20 11 2 Fire 786 | 6 18 70 60 71 24 14 55 34 40 52 10 2 2 52 . 50 . 65 11 69 64 17 Melee 41 | . 9 . . . . . . . 1 19 . . . . . 1 . . . 11 . . Ram 5 | . . . . . . . . . . . . . . . . . . . . . 4 1 Kick 36 | . . . . . . . . . . . . . . . . . . . . . . 36 Crush 21 | . 6 2 1 . . . . 3 4 3 . . . . . . . . . 1 1 . Escape Stasis 31 | . . . . 8 . . 11 2 . 2 . . . 2 . . . 6 . . . . Rewire 196 | . . . . 50 . . 1 . . 124 . . . 1 . 17 . . . . . 3 Trap . | . . . . . . . . . . . . . . . . . . . . . . . Miscellaneous 8 | . . . . . . . . . . . . . . . . 8 . . . . . . Route ------- -11/Scrapyard -10/Materials (discovered 4 exits: *Mat x2 / [*Min] / [*Sub]) -9/Materials (discovered 2 exits: *Mat x2) -8/Materials (discovered 4 exits: *Fac x3 / Gar) -8/Garrison (discovered 3 exits: *Mat x3) -8/Materials (discovered 3 exits: *Fac / Sto x2) -7/Factory -7/Garrison (discovered 2 exits: *Fac x2) -7/Factory -6/Factory -6/Extension (discovered 2 exits: *Fac / *Cet) -6/Cetus (discovered 2 exits: *Fac / *Arc) -6/Archives (discovered 3 exits: *Fac / [*Hub x2]) -5/Factory -5/Garrison (discovered 2 exits: *Fac x2) -5/Factory -5/Garrison (discovered 2 exits: *Fac x2) -4/Factory -4/Garrison (discovered 3 exits: *Res x3) -3/Research -3/Testing -2/Research -1/Access History --------- Turn | Location | Event 6 | -11/Scrapyard | Discovered new exit (range 15) 125 | -11/Scrapyard | Entered Materials 248 | -10/Materials | Discovered new exit (range 9) 317 | -10/Materials | Build established: Mutant 423 | -10/Materials | Discovered new exit (range 9) 685 | -10/Materials | Discovered new exit (range 15) 951 | -10/Materials | Discovered new exit (range 16) 1008 | -10/Materials | Entered another Materials area 1008 | -9/Materials | Evolved 2 slots: Utility x1, Weapon x1 1193 | -9/Materials | Repaired Med. Laser 1358 | -9/Materials | Central database locked down 1858 | -9/Materials | Discovered new exit (range 15) 1873 | -9/Materials | Build established: Gunner 2051 | -9/Materials | Repaired Lgt. Treads 2104 | -9/Materials | Discovered new exit (range 16) 2128 | -9/Materials | Entered another Materials area 2128 | -8/Materials | Evolved 2 slots: Utility x1, Weapon x1 2896 | -8/Materials | Central database locked down 3033 | -8/Materials | Identified exit to Factory 3318 | -8/Materials | Build established: Scavenger-Gunner 4113 | -8/Materials | Build established: Gunner 4123 | -8/Materials | Identified exit to Garrison 4123 | -8/Materials | Entered Garrison 4261 | -8/Garrison | Triggered checkpoint 4363 | -8/Garrison | Triggered checkpoint 4425 | -8/Garrison | Discovered new exit (range 13) 4449 | -8/Garrison | Triggered checkpoint 4791 | -8/Garrison | Triggered checkpoint 4882 | -8/Garrison | Lost 3 allies 4913 | -8/Garrison | Triggered checkpoint 5015 | -8/Garrison | Triggered checkpoint 5093 | -8/Garrison | Discovered new exit (range 14) 5151 | -8/Garrison | Triggered checkpoint 5205 | -8/Garrison | Triggered checkpoint 5299 | -8/Garrison | Garrison Relay disabled 5393 | -8/Garrison | P-60 Hacker assimilated allied Shotgunner 3c 5394 | -8/Garrison | Core integrity fell below 50% 5531 | -8/Garrison | Build established: Scavenger-Gunner 5545 | -8/Garrison | Triggered checkpoint 5601 | -8/Garrison | Garrison Relay disabled 5762 | -8/Garrison | Discovered new exit (range 49) 5762 | -8/Garrison | Discovered new exit (range 23) 5762 | -8/Garrison | Discovered new exit (range 31) 5949 | -8/Garrison | Triggered checkpoint 6008 | -8/Garrison | Installed Relay Interface Framework 6228 | -8/Garrison | Entered Materials 6767 | -8/Materials | Destroyed 7 combat bots 6866 | -8/Materials | Repaired Lgt. Treads+ 7002 | -8/Materials | Identified exit to Storage 7198 | -8/Materials | Central database locked down 7318 | -8/Materials | Discovered exit to Factory (range 3) 7484 | -8/Materials | Entered Factory 7484 | -7/Factory | Evolved 2 slots: Propulsion x1, Utility x1 8275 | -7/Factory | Central database locked down 8466 | -7/Factory | Identified exit to Garrison 8466 | -7/Factory | Entered Garrison 8530 | -7/Garrison | Triggered checkpoint 8912 | -7/Garrison | Build established: Tank 8944 | -7/Garrison | Triggered checkpoint 8986 | -7/Garrison | Destroyed 7 combat bots 9096 | -7/Garrison | Triggered checkpoint 9200 | -7/Garrison | Discovered new exit (range 12) 9264 | -7/Garrison | Build established: Scavenger-Tank 9324 | -7/Garrison | Triggered checkpoint 9470 | -7/Garrison | Discovered new exit (range 15) 9539 | -7/Garrison | Expanded RIF knowledge: Zone Cloak 9678 | -7/Garrison | Triggered checkpoint 9693 | -7/Garrison | Garrison Relay disabled 9790 | -7/Garrison | Entered Factory 10327 | -7/Factory | Discovered new exit (range 10) 10888 | -7/Factory | Allied Derelicts emerged from ambush trap array 11835 | -7/Factory | Entered another Factory area 11835 | -6/Factory | Evolved 2 slots: Propulsion x1, Utility x1 12559 | -6/Factory | Discovered new exit (range 13) 12797 | -6/Factory | Build established: Tank 13055 | -6/Factory | Cargo convoy interrupted 13147 | -6/Factory | Entered Extension 13197 | -6/Extension | Build established: Scavenger-Tank 13315 | -6/Extension | Rescued a captive Derelict 13316 | -6/Extension | Rescued a captive Derelict 13727 | -6/Extension | Rescued a captive Derelict 13727 | -6/Extension | Rescued a captive Derelict 13782 | -6/Extension | Rescued a captive Derelict 13783 | -6/Extension | Rescued a captive Derelict 13896 | -6/Extension | Rescued a captive Derelict 14255 | -6/Extension | Spotted B-75 Beast 14268 | -6/Extension | Build established: Commander-Tank 14268 | -6/Extension | Allies destroyed B-75 Beast 14274 | -6/Extension | Spotted B-75 Beast 14317 | -6/Extension | Destroyed B-75 Beast 14341 | -6/Extension | Lost 9 allies 14472 | -6/Extension | Rescued A7 14584 | -6/Extension | Build established: Scavenger-Tank 15348 | -6/Extension | Build established: Commander-Gunner 15367 | -6/Extension | Discovered new exit (range 16) 15369 | -6/Extension | Discovered new exit (range 15) 15444 | -6/Extension | Entered Cetus 15444 | -6/Cetus | Accompanied by 12 allies (A7) 15449 | -6/Cetus | Acquired a Cetus Manufacturing Module code from A7 15471 | -6/Cetus | Spotted Cetus Guard 15472 | -6/Cetus | Spotted Cetus Guard 15474 | -6/Cetus | Spotted Cetus Guard 15475 | -6/Cetus | Spotted Cetus Guard 15485 | -6/Cetus | Destroyed Cetus Guard 15492 | -6/Cetus | Allies destroyed Cetus Guard 15495 | -6/Cetus | Allies destroyed Cetus Guard 15501 | -6/Cetus | Allies destroyed Cetus Guard 15519 | -6/Cetus | Lost 4 allies 15609 | -6/Cetus | Started Cetus Manufacturing Module 15634 | -6/Cetus | Manufactured an Enhanced Grunt 15659 | -6/Cetus | Manufactured an Enhanced Grunt 15684 | -6/Cetus | Manufactured an Enhanced Grunt 15709 | -6/Cetus | Manufactured an Enhanced Grunt 15734 | -6/Cetus | Manufactured an Enhanced Grunt 15769 | -6/Cetus | Discovered new exit (range 15) 15811 | -6/Cetus | Spotted Cetus Guard 15811 | -6/Cetus | Spotted Cetus Guard 15814 | -6/Cetus | Spotted Cetus Guard 15817 | -6/Cetus | Allies destroyed Cetus Guard 15817 | -6/Cetus | Spotted Cetus Guard 15821 | -6/Cetus | Destroyed Cetus Guard 15828 | -6/Cetus | Allies destroyed Cetus Guard 15835 | -6/Cetus | Allies destroyed Cetus Guard 15847 | -6/Cetus | Discovered new exit (range 16) 15861 | -6/Cetus | Met Revision 17 15919 | -6/Cetus | Build established: Commander-Tank 15975 | -6/Cetus | Entered Archives 15975 | -6/Archives | Accompanied by 12 allies (A7) 16044 | -6/Archives | Discovered new exit (range 16) 16076 | -6/Archives | Discovered new exit (range 15) 16105 | -6/Archives | Discovered new exit (range 15) 16133 | -6/Archives | Unable to access archive contents 16166 | -6/Archives | Unable to access archive contents 16292 | -6/Archives | Entered Factory 16292 | -5/Factory | Accompanied by 10 allies 16292 | -5/Factory | Evolved 2 slots: Power x1, Utility x1 16440 | -5/Factory | Identified exit to Garrison 16469 | -5/Factory | Entered Garrison 16469 | -5/Garrison | Accompanied by 8 allies 16505 | -5/Garrison | Triggered checkpoint 16552 | -5/Garrison | Found Prototype Device 16552 | -5/Garrison | Identified Exp. Thermal Shield 16558 | -5/Garrison | Found Exp. Thermal Shield 16560 | -5/Garrison | Lost 3 allies 16637 | -5/Garrison | Triggered checkpoint 16723 | -5/Garrison | Warlord forces raided the area 16767 | -5/Garrison | Triggered checkpoint 16777 | -5/Garrison | Triggered checkpoint 16784 | -5/Garrison | Triggered checkpoint 16785 | -5/Garrison | Triggered checkpoint 16822 | -5/Garrison | Lost 8 allies 16838 | -5/Garrison | Build established: Scavenger-Tank 16929 | -5/Garrison | Spotted B-75 Beast 16929 | -5/Garrison | Spotted B-75 Beast 16942 | -5/Garrison | Allies destroyed B-75 Beast 16948 | -5/Garrison | Triggered checkpoint 16951 | -5/Garrison | Destroyed B-75 Beast 17117 | -5/Garrison | Triggered checkpoint 17148 | -5/Garrison | Garrison Relay disabled 17175 | -5/Garrison | Triggered checkpoint 17205 | -5/Garrison | Garrison Relay disabled 17286 | -5/Garrison | Discovered new exit (range 12) 17436 | -5/Garrison | Discovered new exit (range 14) 17450 | -5/Garrison | Expanded RIF knowledge: Hotswap 17516 | -5/Garrison | Garrison Relay disabled 17579 | -5/Garrison | Entered Factory 17645 | -5/Factory | Identified exit to Garrison 17645 | -5/Factory | Entered Garrison 17667 | -5/Garrison | Triggered checkpoint 17704 | -5/Garrison | Garrison Relay disabled 17764 | -5/Garrison | Garrison Relay disabled 17831 | -5/Garrison | Spotted B-75 Beast 17852 | -5/Garrison | Assimilated Beast 6a with formatsys_high 17859 | -5/Garrison | Triggered checkpoint 17867 | -5/Garrison | Destroyed 7 combat bots 17898 | -5/Garrison | Triggered checkpoint 17947 | -5/Garrison | Lost 3 parts (1p2w) 17952 | -5/Garrison | Destroyed 8 combat bots 18049 | -5/Garrison | Triggered checkpoint 18110 | -5/Garrison | Garrison Relay disabled 18145 | -5/Garrison | Discovered new exit (range 12) 18448 | -5/Garrison | Garrison Relay disabled 18481 | -5/Garrison | Triggered checkpoint 18499 | -5/Garrison | Triggered checkpoint 18594 | -5/Garrison | Expanded RIF knowledge: Coupler Efficiency 18629 | -5/Garrison | Garrison Relay disabled 18673 | -5/Garrison | Discovered new exit (range 14) 18716 | -5/Garrison | Spotted B-75 Beast 18716 | -5/Garrison | Spotted B-75 Beast 18772 | -5/Garrison | Entered Factory 18772 | -4/Factory | Accompanied by 2 allies 18772 | -4/Factory | Evolved 2 slots: Utility x1, Weapon x1 18806 | -4/Factory | Identified exit to Garrison 18811 | -4/Factory | Entered Garrison 18811 | -4/Garrison | Accompanied by 2 allies 18827 | -4/Garrison | Triggered checkpoint 18897 | -4/Garrison | Destroyed 8 combat bots 18905 | -4/Garrison | Lost 3 parts (1n1u1w) 18949 | -4/Garrison | Triggered checkpoint 18976 | -4/Garrison | Garrison Relay disabled 19048 | -4/Garrison | Found embedded Infiltrators 19113 | -4/Garrison | Spotted B-86 Titan 19123 | -4/Garrison | Triggered checkpoint 19129 | -4/Garrison | Triggered checkpoint 19131 | -4/Garrison | Triggered checkpoint 19133 | -4/Garrison | Destroyed B-86 Titan 19177 | -4/Garrison | Triggered checkpoint 19310 | -4/Garrison | Garrison Relay disabled 19373 | -4/Garrison | Discovered new exit (range 9) 19503 | -4/Garrison | Triggered checkpoint 19635 | -4/Garrison | Triggered checkpoint 19661 | -4/Garrison | Garrison Relay disabled 19770 | -4/Garrison | Phase Generator disabled 19779 | -4/Garrison | Discovered new exit (range 14) 19943 | -4/Garrison | Triggered checkpoint 20026 | -4/Garrison | Discovered new exit (range 11) 20110 | -4/Garrison | Expanded RIF knowledge: Watcher Feeds 20174 | -4/Garrison | Garrison Relay disabled 20209 | -4/Garrison | Entered Research 20209 | -3/Research | Evolved 2 slots: Propulsion x1, Utility x1 20409 | -3/Research | Revision forces began assault on 0b10 20482 | -3/Research | Met up with Revision 17++ 20507 | -3/Research | Discovered new exit (range 16) 20536 | -3/Research | Identified exit to Testing 20557 | -3/Research | Entered Testing 20707 | -3/Testing | Found Prototype Energy Cannon 20707 | -3/Testing | Identified Hpw. Disruptor Cannon 20807 | -3/Testing | First assault squad dispatched 20899 | -3/Testing | Found Prototype Processor 20899 | -3/Testing | Identified Exp. Targeting Computer 21185 | -3/Testing | Build established: Scavenger-Skirmisher 21397 | -3/Testing | Watched by a mysterious "MATRIX" hacker 21491 | -3/Testing | Build established: Scavenger-Gunner 21578 | -3/Testing | Discovered new exit (range 32) 21600 | -3/Testing | Found Prototype Energy Gun 21600 | -3/Testing | Identified Hyp. EM Gauss Rifle 22100 | -3/Testing | Spotted PX-AMVURAR5NN 22131 | -3/Testing | Destroyed PX-AMVURAR5NN 22160 | -3/Testing | System corruption reached 10% 22183 | -3/Testing | Lost 6 parts (1n1u4w) 22184 | -3/Testing | System corruption reached 30% 22270 | -3/Testing | Identified exit to Research 22272 | -3/Testing | Entered Research 22272 | -2/Research | Evolved 2 slots: Propulsion x1, Utility x1 22449 | -2/Research | Central database locked down 22550 | -2/Research | Found Prototype Processor 22550 | -2/Research | Identified Exp. Terrain Scan Processor 22559 | -2/Research | Discovered new exit (range 19) 22731 | -2/Research | Garrison activated, responded to threat 22908 | -2/Research | System corruption reached 10% 23272 | -2/Research | First assault squad dispatched 23355 | -2/Research | Lost 6 parts (1p2n2u1w) 23393 | -2/Research | Lost 3 parts (1p1u1w) 23456 | -2/Research | Lost 4 parts (1n1u2w) 23510 | -2/Research | Cargo convoy interrupted 23516 | -2/Research | Released all parts (8) 23524 | -2/Research | Core integrity fell below 50% 23525 | -2/Research | Entered Access 23525 | -1/Access | Evolved 2 slots: Power x1, Weapon x1 23545 | -1/Access | Lost 14 parts (2p4n2u6w) 23811 | -1/Access | Build established: Mutant 23923 | -1/Access | Found Prototype Launcher 23923 | -1/Access | Identified Point Singularity Launcher 24227 | -1/Access | System corruption reached 10% 24239 | -1/Access | Released all parts (8) 24267 | -1/Access | Lost 13 parts (2p4n4u3w) 24279 | -1/Access | Core integrity fell below 50% 24291 | -1/Access | Core integrity fell below 20% 24297 | -1/Access | Destroyed by S-43 Plague with Heavy Machine Gun Last Messages --------------- 24235_ Kicked P-80 Master out of the way. 24236_ Imp. Targeting Computer destroyed. 24239_ System corrupted: Heat flow error (+297). 24239_ Released Imp. VSS Leg. 24239_ Released Quantum Reactor. 24239_ Released Imp. Thunder Leg. 24239_ Released Imp. Targeting Computer. 24239_ Released Huge Storage Unit. 24239_ Released Quantum Reactor. 24239_ Released Imp. VSS Leg. 24243_ P-80 Master resets P-80 Master, system corruption cleaned. 24259_ System corrupted: Heat flow error (+232). 24260_ M-36 Artificer repairs P-80 Master. 24266_ Emergency Access malfunctions. 24287_ System corrupted: Substantial component data lost. 24287_ Slug penetrates Wave Collapse Detector. 24288_ Slammed into S-43 Plague. 24288_ Destabilizing: System corrupted (+2). Map ----- +----------------------------------------------------+ | ?????????????????????????????????????????????????? | | ?????????????????????????????????????????????????? | | ?????????????????????????????????????????????????? | | ?????????????????????????????????????????????????? | | ?????????????????????????????????????????????????? | | ?????????????????????????????????????????????????? | | ?????????????????????????????????????????????????? | | ?????????????????????????????????????????????????? | | ?????????????????????????????????????????????????? | | ?????????????????????????????????????????????????? | | ?????????????????????????????????????????????????? | | ?????????????????????????????????????????????????? | | ?????????????????????????????????????????????????? | | ?????????????????????????????????????????????#???? | | ??????????????????????????????????????????? #???? | | ?????????????????????????????########????? #???? | | ?????????????# ??????????????# ##### #???? | | ??????????????? #????????##### #???? | | ???????????????? ???????? " #???? | | ?????????????????w ????????? #???? | | ?????????????######m#######??# #???? | | ?????????????+ s #??# ####+#???????? | | ?????????????# pss ######+####### ? ??????? | | ?????????????# hps # +?? ??? ? ? | | ?????????????+ s"s # #???? ????? | | ?????????????# h"""@# """" #? ????? ?? | | ?????????????# p"""# ""R"" # ??????? | | ?????????????# " # "" "" #?????"""?" | | ?????????????# # #???????""? | | ?????????????# # #??? ?""?"? | | ?????????????# " " / ! #?? ???"??? | | ?????????????# "T" # #??? ? ??? | | ?????????????# """ # # ? ????? | | ?????????????############## #???? ????? | | ?????????????????????????## ##??????#?? | | ??????????????????????????###########/##?#??????#? | | ????????????????????????############# ############ | | ?????????????????######### | | ??????????? | | ??????????? ###### | | ????????????????????#????###+############ """ | | ???????????????? ?????? ?? ?? # # "T | | ??????????????????????? ?# ?# # " " % | | ???????????????????? ???# " # # % | | ???????????????? ??"?????# """ # # % % | | ???????????????? ??""????# """ # + % % | | ?????????????????????"???# " # # #### | | ???????????????????"?????# =# # ##% | | ???????????????????"?????# # ######## % | | ?????????????????????????# # ####??##=* | +----------------------------------------------------+ Best States ------------- Heat Dissipation 146 Energy Generation 53 Energy Capacity 600 Matter Stores 489 Matter Capacity 800 Sight Range 16 Robot Scan Range 16 Terrain Scan Range 24 Terrain Scan Density 1010 Base Temperature (-) 100 Armor Coverage 450 Resistance: TH 30 Phase Shifting 10 Evasion (%) 70 Targeting Accuracy 20 Target Analysis 12 Recoil Reduction 6 Particle Charging 25 Relay Coupler Types 2 Relay Coupler Value 71 Item Schematics ----------------- None Robot Schematics ------------------ None Fabricated ------------ Nothing Repaired ---------- Med. Laser | 61% | -9/Materials Lgt. Treads | 17% | -9/Materials Lgt. Treads | 26% | -8/Materials Studied --------- Beam Rifle | -9/Materials | Hacked Imp. Ion Engine | -8/Materials | Hacked Lgt. Treads | -8/Materials | Hacked Field Laser | -8/Materials | Hacked Gatling Laser | -7/Factory | Hacked Hvy. Laser | -7/Factory | Hacked Hyp. Gauss Rifle | -6/Factory | Hacked Rocket Launcher | -6/Factory | Hacked Adv. Remote Datajack | -2/Research | Hacked Alien Tech Used ----------------- None Achievements -------------- None Challenges ------------ None Game ------ Seed MetafieldMediumDeck Manual? 0 Play Time 03:15:30 Cumulative 322.3 hours Start 2026.08.11 @ 00:07:24 End 2026.08.11 @ 17:12:38 Sessions 3 Manual Loads 0 Difficulty Rogue Special Mode None Game No. 166 Rogue 166 Adventurer 0 Explorer 0 Win Type - Total 6 Types 6/0/0/0/0/0/0/0/0/0 Lore% 57 Gallery% 63 Achievement% 45 Wizard Run 0 Options --------- Layout 1 ASCII 0 Keyboard 0 Movement Numpad Keybinds 0 Fullscreen 1 Font 24/Smallcaps Map View 50x35 Zoom Use 0% Tactical HUD 1 Map Filters NONE Filters NONE Steam 1 RUN: ec30fbb3-2f96-48a4-b84b-610c61265dbe